bitfinex-derivatives/quotes_BTCF0:USTF0_20250320
["timestamp","ask_amount","ask_price","bid_price","bid_amount"]
[1742486644029,0.250465,84760.0,84759.0,0.2149]
[1742486644333,0.1180305,84756.0,84755.0,0.2287]
[1742486645827,0.1180305,84756.0,84741.0,0.00869751]
[1742486645828,0.1180417,84748.0,84741.0,0.00869751]
[1742486646020,0.2504817,84748.0,84742.0,0.4609]
[1742486646729,0.6913817,84748.0,84744.0,4e-05]
[1742486647433,0.1180612,84734.0,84733.0,0.4106]
[1742486647626,0.1180668,84730.0,84729.0,0.2361333]
[1742486648237,0.1180668,84730.0,84729.0,0.1180665]
[1742486648621,0.1180709,84728.0,84727.0,0.1180704]
[1742486648824,0.1180709,84728.0,84727.0,0.2161]
[1742486649021,0.3357709,84728.0,84727.0,0.2161]
[1742486649919,0.3357709,84728.0,84727.0,0.3341709]
[1742486650122,0.1180709,84728.0,84727.0,0.3381709]
[1742486650327,0.3357646,84732.0,84731.0,0.118064]
[1742486650632,0.4682046,84732.0,84731.0,0.2161]
[1742486650834,0.2505046,84732.0,84731.0,0.2161]
[1742486651024,0.2505046,84732.0,84731.0,0.3341654]
[1742486651227,0.2505046,84732.0,84731.0,0.6949654]
[1742486651428,0.00017698,84738.0,84737.0,0.118057]
[1742486651828,0.00120001,84765.0,84755.0,0.1180319]
[1742486652034,0.1180242,84761.0,84755.0,0.4788319]
[1742486652224,0.10216864,84758.0,84755.0,0.4788319]
[1742486652641,0.10216864,84758.0,84757.0,0.1180291]
[1742486653536,0.13696836,84763.0,84762.0,0.1180222]
[1742486653724,0.13696836,84763.0,84762.0,0.4788222]
[1742486653920,0.17121045,84770.0,84769.0,0.1180124]
[1742486654126,0.17121045,84770.0,84769.0,0.4788124]
[1742486654428,0.28922145,84770.0,84769.0,0.3608]
[1742486654632,0.1180264,84759.0,84753.0,0.3608]
[1742486654835,0.2504664,84759.0,84754.0,0.2251]
[1742486655130,0.2504664,84759.0,84758.0,0.5286277]
[1742486655321,0.2504664,84759.0,84758.0,0.5286677]
[1742486655729,0.2504664,84759.0,84758.0,0.8894277]
[1742486656027,0.13244,84759.0,84758.0,0.4106]
[1742486656329,0.45564,84759.0,84758.0,0.4106]
[1742486656634,0.71764,84759.0,84758.0,0.4106]
[1742486656939,0.40184,84759.0,84758.0,0.4106]
[1742486657432,0.41379672,84759.0,84758.0,0.4106]
[1742486657629,0.36759672,84759.0,84758.0,0.4106]
[1742486657831,0.15039672,84759.0,84751.0,4e-05]
[1742486658233,0.2255,84758.0,84751.0,4e-05]
[1742486658435,0.1,84756.0,84751.0,4e-05]
[1742486658638,0.2288,84755.0,84751.0,4e-05]
[1742486658837,0.2255,84754.0,84751.0,4e-05]
[1742486660038,0.3255,84754.0,84751.0,4e-05]
[1742486660228,0.2276,84753.0,84751.0,4e-05]
[1742486660432,0.13244,84752.0,84751.0,4e-05]
[1742486660649,0.35744,84752.0,84751.0,4e-05]
[1742486660843,0.35744,84752.0,84747.0,0.5859]
[1742486661141,0.35744,84752.0,84747.0,0.58594]
[1742486661549,0.13244,84752.0,84747.0,0.58594]
[1742486661845,0.13244,84751.0,84747.0,0.58594]
[1742486662034,0.1180389,84750.0,84747.0,0.58594]
[1742486662930,0.3430389,84750.0,84747.0,0.58594]
[1742486663139,0.3430389,84750.0,84747.0,0.7039827]
[1742486663444,0.1220389,84750.0,84748.0,0.1180414]
[1742486663644,0.004,84750.0,84749.0,0.11821728]
[1742486663945,0.1220389,84750.0,84749.0,0.11821728]
[1742486664150,0.004,84750.0,84749.0,0.11821728]
[1742486664447,0.1180238,84763.0,84762.0,0.1180199]
[1742486664647,0.0590054,84771.0,84765.0,0.1180166]
[1742486664648,0.11819358,84767.0,84765.0,0.1180166]
[1742486664832,0.12983411,84767.0,84766.0,0.2386]
[1742486665028,0.01181751,84767.0,84766.0,0.3566166]
[1742486665750,0.12983271,84767.0,84766.0,0.3566166]
[1742486666159,0.00017698,84767.0,84766.0,0.3566166]
[1742486666440,0.1324,84774.0,84772.0,0.1180069]
[1742486666647,0.232,84789.0,84773.0,0.5843]
[1742486666834,0.4279933,84788.0,84773.0,0.5843]
[1742486667039,0.1179874,84787.0,84786.0,0.1179874]
[1742486667652,0.1324,84788.0,84787.0,0.1179874]
[1742486667846,0.250386,84788.0,84787.0,0.1179874]
[1742486668247,0.00017698,84795.0,84793.0,0.1179776]
[1742486668248,0.117978,84794.0,84793.0,0.1179776]
[1742486668639,0.00017698,84795.0,84792.0,0.3608]
[1742486668640,0.117979,84793.0,84792.0,0.3608]
[1742486669045,0.1179874,84787.0,84786.0,0.4106]
[1742486669237,0.6111874,84787.0,84786.0,0.4106]
[1742486669640,0.2503874,84787.0,84786.0,0.4106]
[1742486670242,0.4891874,84787.0,84786.0,0.4106]
[1742486670550,0.7272874,84787.0,84786.0,0.4106]
[1742486671047,0.7312874,84787.0,84786.0,0.4106]
[1742486672144,0.37516,84787.0,84786.0,0.5285888]
[1742486672341,0.2543474,84787.0,84786.0,0.5285888]
[1742486672535,0.2543474,84787.0,84786.0,0.1179888]
[1742486672946,0.004,84787.0,84786.0,0.1179888]
[1742486673353,0.00232,84813.0,84811.0,0.117954]
[1742486673567,0.0589415,84863.0,84862.0,0.0589405]
[1742486673853,0.0008,84884.0,84862.0,1.86096]
[1742486674154,0.409,84906.0,84883.0,0.3608]
[1742486674453,0.5888114,84950.0,84920.0,0.1178022]
[1742486674454,0.409,84928.0,84920.0,0.1178022]
[1742486674663,0.0833019,84939.0,84920.0,0.9278022]
[1742486674950,0.3608,84930.0,84929.0,0.28896034]
[1742486675159,0.3608,84930.0,84929.0,0.01504734]
[1742486675160,0.4196945,84930.0,84929.0,0.01504734]
[1742486675333,0.4196945,84930.0,84922.0,0.1177998]
[1742486675334,0.3608,84930.0,84922.0,0.1177998]
[1742486675639,0.3608,84930.0,84921.0,0.01500691]
[1742486675640,0.3608,84923.0,84921.0,0.01500691]
[1742486675839,0.3608,84923.0,84922.0,0.1177998]
[1742486676039,0.34707377,84930.0,84921.0,0.00017663]
[1742486676436,0.3608,84922.0,84921.0,0.00017663]
[1742486677441,0.4785998,84922.0,84921.0,0.00017663]
[1742486677649,0.3608,84922.0,84921.0,0.00017663]
[1742486677850,0.3608,84922.0,84921.0,0.11797783]
[1742486678044,0.3608,84922.0,84921.0,0.00017663]
[1742486678243,0.2291,84929.0,84921.0,0.00017663]
[1742486678451,0.3608,84922.0,84919.0,0.25352276]
[1742486678649,0.5891061,84907.0,84876.0,0.5760131]
[1742486678856,0.7216,84877.0,84807.0,0.7083]
[1742486679068,0.7216,84877.0,84830.0,0.25352276]
[1742486679069,0.3608,84850.0,84830.0,0.25352276]
[1742486679266,0.3608,84852.0,84839.0,0.0589575]
[1742486679456,0.13224,84878.0,84839.0,0.0589575]
[1742486679457,0.3608,84840.0,84839.0,0.1]
[1742486679653,0.3608,84840.0,84839.0,0.2379151]
[1742486679846,0.3608,84840.0,84839.0,0.12]
[1742486680147,0.3608,84840.0,84839.0,0.2379151]
[1742486680359,0.09745727,84840.0,84839.0,0.2379151]
[1742486680544,0.3608,84851.0,84850.0,0.1178998]
[1742486680752,0.3608,84851.0,84850.0,0.1678998]
[1742486681054,0.00017677,84854.0,84853.0,0.1178956]
[1742486681257,0.00017677,84854.0,84853.0,0.1578956]
[1742486681654,0.36097677,84854.0,84853.0,0.11664921]
[1742486682053,0.36962171,84854.0,84853.0,0.09664921]
[1742486682253,0.36962171,84854.0,84845.0,0.0589527]
[1742486682456,0.3608,84846.0,84845.0,0.1179067]
[1742486682756,0.1179104,84843.0,84839.0,0.003]
[1742486682950,0.4197527,84846.0,84842.0,0.1179108]
[1742486682951,0.3608,84846.0,84842.0,0.1179108]
[1742486683191,0.1179137,84840.0,84839.0,4e-05]
[1742486683353,0.1179088,84844.0,84840.0,0.1179137]
[1742486683552,0.13472,84844.0,84840.0,0.1179128]
[1742486683757,0.13472,84844.0,84837.0,0.00017677]
[1742486683955,0.3608,84838.0,84837.0,0.00017677]
[1742486684165,0.3608,84838.0,84837.0,0.11809457]
[1742486685257,0.3608,84838.0,84814.0,0.0006]
[1742486685258,0.49552,84838.0,84814.0,0.0006]
[1742486685558,0.3608,84815.0,84814.0,0.1179498]
[1742486685857,0.1936854,84828.0,84816.0,0.1179467]
[1742486686173,0.1936854,84828.0,84817.0,0.1179455]
[1742486686174,0.1179443,84818.0,84817.0,0.1179455]
[1742486686352,0.3608,84818.0,84813.0,0.23334]
[1742486686553,0.3608,84818.0,84817.0,0.1179456]
[1742486686750,0.3608,84818.0,84817.0,0.1279456]
[1742486687256,0.3608,84818.0,84817.0,0.01]
[1742486687457,0.3608,84818.0,84817.0,0.1179456]
[1742486687858,0.3608,84818.0,84814.0,0.004]
[1742486688168,0.3608,84818.0,84809.0,0.00017677]
[1742486688169,0.1179526,84812.0,84809.0,0.00017677]
[1742486688357,0.1779526,84812.0,84809.0,0.00017677]
[1742486688747,0.1179554,84810.0,84809.0,0.00017677]
[1742486688984,0.6733154,84810.0,84809.0,0.00017677]
[1742486689560,0.6703154,84810.0,84809.0,0.00017677]
[1742486689761,0.6703154,84810.0,84809.0,0.02017677]
[1742486689965,0.6103154,84810.0,84809.0,0.00017677]
[1742486690459,0.3648,84810.0,84809.0,0.11813357]
[1742486690770,0.3648,84810.0,84809.0,0.58343357]
[1742486690957,0.00017677,84826.0,84816.0,0.117947]
[1742486691160,0.13432,84836.0,84835.0,0.1179206]
[1742486691664,0.14432,84836.0,84835.0,0.1179206]
[1742486691858,0.14432,84836.0,84834.0,0.2286]
[1742486692158,0.1179304,84828.0,84827.0,0.2286]
[1742486692361,0.4987304,84828.0,84827.0,0.34670847]
[1742486692654,0.6129304,84828.0,84827.0,0.34670847]
[1742486692858,0.1342,84828.0,84827.0,0.34670847]
[1742486693549,0.004,84836.0,84834.0,0.117922]
[1742486693746,0.004,84836.0,84835.0,0.3465206]
[1742486693963,0.1219192,84836.0,84835.0,0.2286]
[1742486694263,0.1219192,84836.0,84835.0,0.3465206]
[1742486694648,0.1219192,84836.0,84835.0,0.2286]
[1742486694852,0.1179304,84828.0,84827.0,0.00017677]
[1742486695059,0.6127704,84828.0,84827.0,0.00017677]
[1742486695568,0.2519704,84828.0,84827.0,0.00017677]
[1742486695952,0.13404,84828.0,84827.0,0.11810847]
[1742486696163,0.13704,84828.0,84827.0,0.11810847]
[1742486696964,0.004,84828.0,84827.0,0.11810847]
[1742486697164,0.004,84828.0,84827.0,0.33660847]
[1742486698365,0.1219304,84828.0,84827.0,0.21867677]
[1742486698562,0.1219304,84828.0,84827.0,0.00017677]
[1742486699065,0.5838304,84828.0,84827.0,0.00017677]
[1742486699457,0.004,84828.0,84827.0,0.11810847]
[1742486699761,0.004,84828.0,84827.0,0.34200847]
[1742486700357,0.1219304,84828.0,84827.0,0.34200847]
[1742486702362,0.004,84828.0,84827.0,0.34200847]
[1742486703459,0.0589565,84841.0,84827.0,0.23939579]
[1742486703659,0.1768948,84830.0,84829.0,0.176886]
[1742486703875,0.1768948,84830.0,84829.0,0.42160428]
[1742486704071,0.1768948,84830.0,84829.0,0.53952818]
[1742486704255,0.2197,84839.0,84834.0,0.0589603]
[1742486704570,0.1179192,84836.0,84835.0,0.23]
[1742486704763,0.2508392,84836.0,84835.0,0.24471828]
[1742486704962,0.2508392,84836.0,84835.0,0.36263888]
[1742486705177,0.2508392,84836.0,84835.0,0.24471828]
[1742486705470,0.2508392,84836.0,84835.0,0.3479206]
[1742486705679,0.13292,84836.0,84827.0,0.00117677]
[1742486705872,0.3608,84828.0,84798.0,0.36084]
[1742486706062,0.1179582,84808.0,84807.0,0.1179996]
[1742486706368,0.2509182,84808.0,84807.0,4e-05]
[1742486706570,0.2509182,84808.0,84807.0,0.01470677]
[1742486706759,0.2509182,84808.0,84807.0,0.13266637]
[1742486707264,0.2509182,84808.0,84807.0,0.1179996]
[1742486707463,0.2509182,84808.0,84807.0,0.22844]
[1742486707870,0.4723182,84808.0,84807.0,4e-05]
[1742486708056,0.1179679,84801.0,84800.0,0.1]
[1742486708264,0.4787679,84801.0,84800.0,0.1]
[1742486708668,0.6114479,84801.0,84800.0,0.2179693]
[1742486708857,0.2506479,84801.0,84800.0,0.6818693]
[1742486709060,0.6114479,84801.0,84800.0,0.69681711]
[1742486709463,0.2506479,84801.0,84800.0,0.69665402]
[1742486709763,0.6114479,84801.0,84800.0,0.11478472]
[1742486710270,0.6094479,84801.0,84800.0,0.1]
[1742486711167,0.7114479,84801.0,84800.0,0.1]
[1742486711376,0.1179943,84782.0,84775.0,0.1180029]
[1742486711560,0.2502743,84782.0,84779.0,0.0589986]
[1742486711754,0.1180041,84775.0,84774.0,0.2284]
[1742486712060,0.1180041,84775.0,84774.0,0.36635709]
[1742486712259,0.1180021,84777.0,84776.0,0.1180013]
[1742486712459,0.1179996,84779.0,84778.0,0.1179985]
[1742486712685,0.13228,84782.0,84780.0,0.1179957]
[1742486712872,0.2502757,84782.0,84781.0,0.3388957]
[1742486713570,0.1180055,84774.0,84773.0,0.27882207]
[1742486713757,0.1180055,84774.0,84773.0,0.2938964]
[1742486713963,0.1180055,84774.0,84773.0,0.41190339]
[1742486714769,0.2502855,84774.0,84773.0,0.01507442]
[1742486714971,0.2502855,84774.0,84768.0,0.00021688]
[1742486714972,0.1180124,84769.0,84768.0,0.00021688]
[1742486715171,0.0590054,84771.0,84768.0,0.00021688]
[1742486715172,0.1770172,84771.0,84768.0,0.00021688]
[1742486715360,0.118011,84771.0,84770.0,0.1180069]
[1742486715560,0.116011,84771.0,84770.0,0.0590045]
[1742486715773,0.0590047,84772.0,84769.0,0.2209]
[1742486715774,0.118011,84770.0,84769.0,0.2209]
[1742486715970,0.0590047,84772.0,84768.0,0.00017688]
[1742486715971,0.1180124,84769.0,84768.0,0.00017688]
[1742486716164,0.3424124,84769.0,84768.0,0.00017688]
[1742486716967,0.5663124,84769.0,84768.0,0.00017688]
[1742486717563,0.7263124,84769.0,84768.0,0.00017688]
[1742486717778,0.6263124,84769.0,84768.0,0.00017688]
[1742486717971,0.0590207,84749.0,84743.0,4e-05]
[1742486718169,0.17707,84747.0,84746.0,0.1180431]
[1742486718876,0.1180472,84744.0,84743.0,4e-05]
[1742486719173,0.1180472,84744.0,84743.0,0.1180886]
[1742486719473,0.1180472,84744.0,84743.0,0.1210886]
[1742486720364,0.13232,84748.0,84747.0,0.1180431]
[1742486720569,0.1190403,84749.0,84748.0,0.1180417]
[1742486720767,0.2513603,84749.0,84748.0,0.1180417]
[1742486721075,0.2503603,84749.0,84748.0,0.1180417]
[1742486721274,0.1182131,84752.0,84751.0,0.1180375]
[1742486721576,0.2505331,84752.0,84751.0,0.1180375]
[1742486721772,0.132497,84752.0,84747.0,0.1180425]
[1742486721966,0.132497,84752.0,84743.0,0.36084]
[1742486721967,0.1770634,84750.0,84749.0,0.0590197]
[1742486722173,0.1770634,84750.0,84749.0,0.1770572]
[1742486722566,0.1770634,84750.0,84749.0,0.0590197]
[1742486722861,0.0590191,84751.0,84743.0,0.3608]
[1742486723064,0.1180472,84744.0,84743.0,0.4788486]
[1742486723260,0.25952531,84744.0,84743.0,0.4788486]
[1742486725175,0.26052531,84744.0,84743.0,0.4788486]
[1742486725371,0.26052531,84744.0,84743.0,0.48782043]
[1742486725589,0.26152531,84744.0,84743.0,0.48782043]
[1742486725965,0.26152531,84744.0,84743.0,0.577]
[1742486726370,0.14347811,84744.0,84743.0,0.6950486]
[1742486726578,0.26152531,84744.0,84743.0,0.6950486]
[1742486727879,0.01115811,84744.0,84743.0,0.6950486]
[1742486728178,0.002,84744.0,84743.0,0.6950486]
[1742486728381,0.002,84744.0,84743.0,0.70435925]
[1742486729371,0.002,84744.0,84743.0,0.6950486]
[1742486730479,0.2524072,84744.0,84743.0,0.577]
[1742486730879,0.4900072,84744.0,84743.0,0.577]
[1742486731466,0.43196,84744.0,84731.0,4e-05]
[1742486731671,0.1180654,84731.0,84718.0,0.228]
[1742486731873,0.1180821,84719.0,84718.0,0.2370046]
[1742486732071,0.3104421,84719.0,84718.0,0.228]
[1742486732374,0.1,84709.0,84704.0,4e-05]
[1742486732574,0.1181016,84705.0,84704.0,4e-05]
[1742486732771,0.1171016,84705.0,84704.0,4e-05]
[1742486732974,0.5934016,84705.0,84704.0,4e-05]
[1742486733179,0.5884016,84705.0,84704.0,4e-05]
[1742486733377,0.6484016,84705.0,84704.0,4e-05]
[1742486733566,0.0590515,84704.0,84698.0,0.36091883]
[1742486733782,0.0590515,84704.0,84660.0,0.0590821]
[1742486733783,0.1181295,84685.0,84674.0,0.1181447]
[1742486733968,0.3084895,84685.0,84674.0,0.1181447]
[1742486734174,0.2484895,84685.0,84683.0,0.1181319]
[1742486734475,0.2474895,84685.0,84675.0,0.1181428]
[1742486734686,0.3474895,84685.0,84670.0,0.00893297]
[1742486734979,0.1181532,84668.0,84667.0,0.85448974]
[1742486735173,0.1181532,84668.0,84667.0,0.3608]
[1742486735174,0.2495532,84668.0,84667.0,0.3608]
[1742486735377,0.1324,84668.0,84667.0,0.4789546]
[1742486735681,0.00017711,84676.0,84675.0,0.1181434]
[1742486735868,0.0590584,84694.0,84685.0,0.0590644]
[1742486736078,0.1324,84693.0,84692.0,0.1181197]
[1742486736276,0.1324,84693.0,84689.0,0.118122]
[1742486736479,0.1181211,84691.0,84690.0,0.2214]
[1742486736878,0.7086211,84691.0,84690.0,0.2214]
[1742486737085,0.9266211,84691.0,84690.0,0.2214]
[1742486738476,0.1181253,84688.0,84687.0,4e-05]
[1742486738668,0.16,84688.0,84668.0,0.3608]
[1742486738874,0.1181484,84673.0,84672.0,0.1181467]
[1742486739176,0.1324,84673.0,84672.0,0.2362919]
[1742486739472,0.1324,84677.0,84676.0,0.118142]
[1742486739680,1e-08,84677.0,84676.0,0.478942]
[1742486739878,0.1181365,84682.0,84681.0,0.1771991]
[1742486740473,0.2505309,84684.0,84683.0,0.1181309]
[1742486740676,0.1324,84684.0,84683.0,0.1181309]
[1742486740868,0.2505309,84684.0,84683.0,0.1181309]
[1742486741672,0.1181337,84682.0,84681.0,0.0590674]
[1742486741886,0.2505309,84684.0,84676.0,0.4789412]
[1742486741887,0.1181407,84677.0,84676.0,0.4789412]
[1742486742409,0.1181407,84677.0,84676.0,0.81]
[1742486742779,0.1181407,84677.0,84676.0,0.928142]
[1742486742980,0.12772797,84677.0,84676.0,0.928142]
[1742486743381,0.12772797,84677.0,84676.0,0.81]
[1742486744178,0.12772797,84677.0,84676.0,0.928142]
[1742486744179,0.26016797,84677.0,84676.0,0.928142]
[1742486744588,0.14202727,84677.0,84676.0,0.928142]
[1742486745186,0.14302727,84677.0,84676.0,0.928142]
[1742486745375,0.26116797,84677.0,84676.0,0.928142]
[1742486745576,0.14302727,84677.0,84676.0,0.928142]
[1742486745780,0.01058727,84677.0,84676.0,0.928142]
[1742486746082,0.26116797,84677.0,84676.0,0.928142]
[1742486748087,0.118142,84676.0,84675.0,4e-05]
[1742486748289,0.554542,84676.0,84675.0,0.1181834]
[1742486748584,0.554542,84676.0,84675.0,4e-05]
[1742486748783,0.1181476,84672.0,84671.0,0.330549]
[1742486749373,0.0590784,84666.0,84633.0,0.3608]
[1742486749577,0.4789805,84649.0,84648.0,0.1772676]
[1742486749786,0.6114205,84649.0,84648.0,0.0590905]
[1742486750194,0.1181825,84647.0,84646.0,0.2770913]
[1742486750379,0.1181739,84654.0,84646.0,0.56643691]
[1742486750590,0.0590864,84654.0,84653.0,0.1181714]
[1742486751086,0.3608,84656.0,84654.0,0.1181727]
[1742486751287,0.4789625,84664.0,84663.0,0.1181602]
[1742486751586,0.1772479,84661.0,84660.0,0.1181638]
[1742486752883,0.1181741,84653.0,84652.0,0.11835001]
[1742486753388,0.4789741,84653.0,84652.0,0.00017711]
[1742486753590,0.4789741,84653.0,84652.0,0.11835261]
[1742486753787,0.6114141,84653.0,84652.0,0.00017711]
[1742486754393,0.62061115,84653.0,84652.0,0.00017711]
[1742486755285,0.68061115,84653.0,84652.0,0.00017711]
[1742486756296,0.68061115,84653.0,84650.0,4e-05]
[1742486756297,0.1181769,84651.0,84650.0,4e-05]
[1742486756501,0.4789769,84651.0,84650.0,4e-05]
[1742486756889,0.3608,84651.0,84650.0,0.1182183]
[1742486757083,0.49324,84653.0,84652.0,0.1181755]
[1742486758401,0.1181769,84651.0,84650.0,0.00104]
[1742486758587,0.2506169,84651.0,84650.0,0.00104]
[1742486758898,0.2506169,84651.0,84650.0,0.1191783]
[1742486759292,0.2506169,84651.0,84650.0,0.13440076]
[1742486759793,0.2506169,84651.0,84650.0,0.03091755]
[1742486759988,0.3106169,84651.0,84650.0,0.03091755]
[1742486760188,0.1181881,84643.0,84642.0,4e-05]
[1742486760390,0.3608,84643.0,84642.0,4e-05]
[1742486760590,0.11835522,84651.0,84648.0,0.0590898]
[1742486760907,0.1171797,84649.0,84648.0,0.0590898]
[1742486761603,0.1181881,84643.0,84642.0,0.1202278]
[1742486761800,0.1181881,84643.0,84642.0,0.14448151]
[1742486762205,0.13244,84650.0,84642.0,0.002]
[1742486762405,0.3097129,84650.0,84649.0,0.1181797]
[1742486762908,0.1181881,84643.0,84642.0,0.002]
[1742486763098,0.1781881,84643.0,84642.0,0.0244011]
[1742486763406,0.1181951,84638.0,84635.0,0.1181987]
[1742486763602,0.2506351,84638.0,84637.0,0.14266741]
[1742486763801,0.0580934,84644.0,84643.0,0.1181867]
[1742486764009,0.06740775,84644.0,84643.0,0.02443048]
[1742486764207,0.1181909,84641.0,84640.0,4e-05]
[1742486764501,0.1162132,84625.0,84617.0,0.1182236]
[1742486764705,0.1162132,84625.0,84624.0,0.02440927]
[1742486765500,0.1182188,84621.0,84620.0,4e-05]
[1742486765698,0.1182188,84621.0,84620.0,0.14249329]
[1742486766308,0.1182188,84621.0,84620.0,4e-05]
[1742486766700,0.1182188,84621.0,84620.0,0.1182602]
[1742486766898,0.1192188,84621.0,84620.0,0.1182602]
[1742486767094,0.1192188,84621.0,84620.0,4e-05]
[1742486767293,0.1192188,84621.0,84620.0,0.1182602]
[1742486767500,0.1192188,84621.0,84620.0,0.3427602]
[1742486767696,0.002,84621.0,84620.0,0.5532602]
[1742486767904,0.1202188,84621.0,84620.0,0.5532602]
[1742486768106,0.002,84621.0,84620.0,0.5532602]
[1742486768506,0.1202188,84621.0,84620.0,0.5532602]
[1742486768906,0.1192188,84621.0,84620.0,0.5532602]
[1742486769697,0.1182188,84621.0,84620.0,0.5532602]
[1742486770205,0.1182188,84621.0,84620.0,0.43504]
[1742486770398,0.1782188,84621.0,84620.0,0.43504]
[1742486770602,0.1782188,84621.0,84620.0,0.5532602]
[1742486770808,0.0591051,84628.0,84621.0,0.0591094]
[1742486771109,0.1182041,84632.0,84631.0,0.1182035]
[1742486771304,0.1182041,84632.0,84631.0,0.3329035]
[1742486771500,0.1782041,84632.0,84631.0,0.4416]
[1742486771900,0.1782041,84632.0,84631.0,0.2269]
[1742486772105,0.5664041,84632.0,84631.0,0.2269]
[1742486772910,0.6664041,84632.0,84631.0,0.2269]
[1742486773216,0.6988841,84632.0,84631.0,0.2269]
[1742486773512,0.7008841,84632.0,84631.0,0.2269]
[1742486773715,0.118216,84623.0,84622.0,0.2147]
[1742486773917,0.1182146,84624.0,84623.0,0.2285]
[1742486774105,0.5390146,84624.0,84623.0,0.2285]
[1742486774312,0.5390146,84624.0,84611.0,4e-05]
[1742486774313,0.1182314,84612.0,84611.0,4e-05]
[1742486774505,0.3107114,84612.0,84611.0,0.1182728]
[1742486774816,0.06,84612.0,84611.0,0.1182728]
[1742486775015,0.13248,84617.0,84616.0,0.1773387]
[1742486775216,0.1182244,84617.0,84616.0,0.0591129]
[1742486775404,0.1182286,84614.0,84613.0,0.1773419]
[1742486776008,0.1182286,84614.0,84613.0,0.2284]
[1742486776206,0.1182286,84614.0,84613.0,0.34663]
[1742486776509,0.1782286,84614.0,84613.0,0.57163]
[1742486776711,0.2507086,84614.0,84613.0,0.57163]
[1742486776905,0.1182272,84616.0,84615.0,0.1182232]
[1742486777108,0.1779,84623.0,84622.0,0.118216]
[1742486777109,0.1182179,84623.0,84622.0,0.118216]
[1742486777314,0.1182216,84619.0,84618.0,0.0591108]
[1742486777908,0.1182202,84621.0,84615.0,0.4790272]
[1742486777909,0.1182258,84616.0,84615.0,0.4790272]
[1742486779113,0.1182258,84616.0,84615.0,0.3608]
[1742486779722,0.1182258,84616.0,84615.0,0.4790272]
[1742486780214,0.1182258,84616.0,84615.0,0.1182272]
[1742486780608,0.2507058,84616.0,84615.0,0.1182272]
[1742486780916,0.1182286,84614.0,84613.0,4e-05]
[1742486781114,0.2507086,84614.0,84613.0,4e-05]
[1742486781913,0.2507086,84614.0,84611.0,0.0591158]
[1742486781914,0.1182314,84612.0,84611.0,0.0591158]
[1742486782124,0.1182314,84612.0,84611.0,0.0591558]
[1742486782806,0.2507114,84612.0,84611.0,0.0591558]
[1742486783624,0.26057958,84612.0,84611.0,0.0591558]
[1742486783822,0.12809958,84612.0,84611.0,0.0591558]
[1742486784010,0.26057958,84612.0,84611.0,4e-05]
[1742486784218,0.12809958,84612.0,84611.0,4e-05]
[1742486784412,0.26057958,84612.0,84611.0,4e-05]
[1742486785017,0.26057958,84612.0,84603.0,0.479044]
[1742486785018,0.1182426,84604.0,84603.0,0.479044]
[1742486785225,0.1182403,84606.0,84605.0,0.1773603]
[1742486785423,0.2507203,84606.0,84605.0,0.1773603]
[1742486785720,0.13248,84606.0,84605.0,0.1874481]
[1742486785923,0.2507198,84606.0,84605.0,0.1874481]
[1742486786114,0.1182398,84606.0,84605.0,0.1874481]
[1742486786816,0.0591155,84613.0,84608.0,0.0591184]
[1742486787017,0.1773501,84613.0,84612.0,0.1182314]
[1742486787217,0.1182384,84607.0,84606.0,0.1182377]
[1742486787418,0.0591174,84610.0,84609.0,0.1773498]
[1742486788516,0.1182326,84612.0,84611.0,0.1182314]
[1742486788721,0.118231,84613.0,84612.0,0.11823]
[1742486788920,0.10296178,84615.0,84613.0,0.11823]
[1742486789122,0.20401194,84632.0,84625.0,0.1182132]
[1742486789429,0.28970047,84626.0,84625.0,0.1182132]
[1742486790322,0.00017722,84634.0,84633.0,0.1182021]
[1742486791121,0.11837792,84634.0,84633.0,0.1182021]
[1742486791629,0.12337792,84634.0,84633.0,0.1182021]
[1742486792220,0.1182035,84632.0,84631.0,0.0591021]
[1742486793530,0.1202035,84632.0,84631.0,0.0591021]
[1742486793928,0.1222035,84632.0,84631.0,0.0591021]
[1742486794628,0.004,84632.0,84631.0,0.0591021]
[1742486794826,0.004,84632.0,84631.0,0.4199021]
[1742486795633,0.0590881,84652.0,84646.0,0.1181839]
[1742486795825,0.59874887,84661.0,84660.0,0.1181644]
[1742486796020,0.71587186,84661.0,84660.0,0.1181644]
[1742486797031,0.35507186,84661.0,84660.0,0.1181644]
[1742486797328,0.35507186,84661.0,84659.0,0.3523646]
[1742486797329,0.23690886,84661.0,84659.0,0.3523646]
[1742486797534,0.1181644,84660.0,84659.0,0.3523644]
[1742486798735,0.48865298,84661.0,84660.0,0.1181644]
[1742486799029,0.27075298,84661.0,84660.0,0.5637644]
[1742486799230,0.38891598,84661.0,84660.0,0.5637644]
[1742486799830,0.27575298,84661.0,84660.0,0.5637644]
[1742486800332,0.39391598,84661.0,84660.0,0.4456]
[1742486800532,0.81971598,84661.0,84660.0,0.4456]
[1742486801435,1.03951598,84661.0,84660.0,0.4456]
[1742486801636,1.03951598,84661.0,84659.0,4e-05]
[1742486801637,0.1181644,84660.0,84659.0,4e-05]
[1742486801932,0.1181741,84653.0,84650.0,0.2149]
[1742486802230,0.3105741,84653.0,84650.0,0.2149]
[1742486802429,0.1924,84653.0,84652.0,0.11835272]
[1742486802629,0.1281642,84661.0,84660.0,0.1181644]
[1742486803022,0.1181644,84660.0,84659.0,0.2157]
[1742486803333,0.1181741,84653.0,84652.0,0.00017722]
[1742486803532,0.6713341,84653.0,84652.0,0.00017722]
[1742486803734,0.6763341,84653.0,84652.0,0.00017722]
[1742486804030,0.6763341,84653.0,84622.0,0.0591085]
[1742486804031,0.118216,84624.0,84622.0,0.0591085]
[1742486804234,0.1182132,84625.0,84624.0,0.2461]
[1742486804620,0.1182132,84625.0,84624.0,0.3643146]
[1742486805631,0.1182202,84620.0,84619.0,0.00908584]
[1742486805825,0.3105802,84620.0,84619.0,0.00908584]
[1742486806021,0.1182244,84617.0,84616.0,0.24627722]
[1742486806832,0.2505844,84617.0,84616.0,0.36450302]
[1742486807331,0.1182244,84617.0,84616.0,0.36450302]
[1742486807533,0.13000831,84617.0,84616.0,0.36450302]
[1742486808724,0.002,84617.0,84616.0,0.37413233]
[1742486809042,0.1202244,84617.0,84616.0,0.36450302]
[1742486809344,0.1212244,84617.0,84616.0,0.36450302]
[1742486811038,0.003,84617.0,84616.0,0.36450302]
[1742486811540,0.1212244,84617.0,84616.0,0.36450302]
[1742486811739,0.003,84617.0,84616.0,0.36450302]
[1742486811937,0.1212244,84617.0,84616.0,0.36450302]
[1742486813748,0.1212244,84617.0,84616.0,0.24627722]
[1742486814736,0.1812244,84617.0,84616.0,0.24627722]